fUSD/lending_fUSD_20250804
["ID","MTS","AMOUNT","RATE_DAILY","PERIOD"]
[377234427,1754305937140,-400.0,0.00039452,2]
[377234428,1754305937149,-400.0,0.00039452,2]
[377234429,1754305937158,-1875.95,0.00039452,2]
[377234430,1754305937168,-659.18,0.00039452,2]
[377234431,1754305937177,-905.16,0.00039452,2]
[377234432,1754305937186,-2160.03,0.00039452,2]
[377234433,1754305937196,-618.84,0.00039452,2]
[377234434,1754305937205,-491.69,0.00039452,2]
[377234435,1754305937214,-474.42858986,0.00039452,2]
[377234436,1754305937223,-1286.32,0.00039452,2]
[377234437,1754305937232,-476.99,0.00039452,2]
[377234438,1754305937241,-1377.16,0.00039452,2]
[377234439,1754305937251,-198.65524081,0.00039452,2]
[377234440,1754305937264,-713.76,0.00039452,2]
[377234441,1754305937274,-580.3,0.00039452,2]
[377234442,1754305937284,-1539.83,0.00039452,2]
[377234443,1754305937293,-582.52,0.00039452,2]
[377234444,1754305937302,-727.44,0.00039452,2]
[377234445,1754305937312,-400.0,0.00039452,2]
[377234446,1754305937321,-400.0,0.00039452,2]
[377234447,1754305937330,-406.58,0.00039452,2]
[377234448,1754305937340,-1515.13,0.00039452,2]
[377234449,1754305937349,-1584.46,0.00039452,2]
[377234450,1754305937358,-6316.72,0.00039452,2]
[377234451,1754305937368,-3107.23,0.00039452,2]
[377234452,1754305937378,-1891.71,0.00039452,2]
[377234453,1754305937387,-400.0,0.00039452,2]
[377234454,1754305937397,-1032.57,0.00039452,2]
[377234455,1754305937406,-400.0,0.00039452,2]
[377234456,1754305937415,-1732.93,0.00039452,2]
[377234457,1754305937424,-1698.39,0.00039452,2]
[377234458,1754305937433,-1238.95,0.00039452,2]
[377234459,1754305937443,-400.0,0.00039452,2]
[377234460,1754305937453,-400.0,0.00039452,2]
[377234461,1754305937591,-1178.78,0.00039452,2]
[377234462,1754305937601,-400.0,0.00039452,2]
[377234463,1754305937612,-1670.39,0.00039452,2]
[377234464,1754305937622,-1066.08,0.00039452,2]
[377234465,1754305937632,-400.0,0.00039452,2]
[377234466,1754305937641,-942.3,0.00039452,2]
[377234467,1754305937650,-1868.67,0.00039452,2]
[377234468,1754305937660,-2052.93,0.00039452,2]
[377234469,1754305937669,-533.88,0.00039452,2]
[377234470,1754305937679,-1689.09,0.00039452,2]
[377234471,1754305937688,-1644.64,0.00039452,2]
[377234472,1754305937698,-400.0,0.00039452,2]
[377234473,1754305937708,-523.87574511,0.00039452,2]
[377234474,1754305937720,-1545.77,0.00039452,2]
[377234475,1754305937730,-1572.92,0.00039452,2]
[377234476,1754305937739,-1113.34,0.00039452,2]
[377234477,1754305937748,-8388.36,0.00039452,2]
[377234478,1754305937758,-1722.33,0.00039452,2]
[377234479,1754305937769,-1766.11,0.00039452,2]
[377234480,1754305937779,-1306.14,0.00039452,2]
[377234481,1754305937788,-1596.57,0.00039452,2]
[377234482,1754305937799,-819.3,0.00039452,2]
[377234483,1754305937809,-431.73,0.00039452,2]
[377234484,1754305937819,-400.0,0.00039452,2]
[377234485,1754305937829,-1501.24,0.00039452,2]
[377234486,1754305937839,-1264.88,0.00039452,2]
[377234487,1754305937849,-400.0,0.00039452,2]
[377234488,1754305937858,-1010.21,0.00039452,2]
[377234489,1754305937868,-1156.04,0.00039452,2]
[377234490,1754305937877,-873.38,0.00039452,2]
[377234491,1754305937886,-400.0,0.00039452,2]
[377234492,1754305937896,-1469.78,0.00039452,2]
[377234493,1754305937906,-4195.1,0.00039452,2]
[377234494,1754305937921,-400.0,0.00039452,2]
[377234495,1754305937930,-1925.04,0.00039452,2]
[377234496,1754305937941,-714.27,0.00039452,2]
[377234497,1754305937951,-400.0,0.00039452,2]
[377234498,1754305937961,-1923.74,0.00039452,2]
[377234499,1754305937972,-817.57,0.00039452,2]
[377234500,1754305937982,-400.0,0.00039452,2]
[377234501,1754305937993,-1747.36,0.00039452,2]
[377234502,1754305938003,-1337.16,0.00039452,2]
[377234503,1754305938012,-694.89,0.00039452,2]
[377234504,1754305938021,-400.0,0.00039452,2]
[377234505,1754305938031,-1374.38,0.00039452,2]
[377234506,1754305938041,-670.37,0.00039452,2]
[377234507,1754305938050,-400.0,0.00039452,2]
[377234508,1754305938059,-1448.9,0.00039452,2]
[377234509,1754305938070,-527.82229144,0.00039452,2]
[377234510,1754305938080,-5776.09,0.00039452,2]
[377234511,1754305938090,-1746.78,0.00039452,2]
[377234512,1754305938099,-400.0,0.00039452,2]
[377234513,1754305938109,-1793.17,0.00039452,2]
[377234514,1754305938119,-1183.71,0.00039452,2]
[377234515,1754305938129,-400.0,0.00039452,2]
[377234516,1754305938139,-1363.88,0.00039452,2]
[377234517,1754305938149,-400.0,0.00039452,2]
[377234518,1754305938158,-6346.76,0.00039452,2]
[377234519,1754305938168,-400.0,0.00039452,2]
[377234520,1754305938178,-455.16,0.00039452,2]
[377234521,1754305938187,-1230.85,0.00039452,2]
[377234522,1754305938197,-400.0,0.00039452,2]
[377234523,1754305938206,-400.0,0.00039452,2]
[377234524,1754305938216,-941.56,0.00039452,2]
[377234525,1754305938225,-400.0,0.00039452,2]
[377234526,1754305938234,-1208.54,0.00039452,2]
[377234527,1754305938244,-400.0,0.00039452,2]
[377234528,1754305938254,-1603.12,0.00039452,2]
[377234529,1754305938263,-2444.62,0.00039452,2]
[377234530,1754305938273,-400.0,0.00039452,2]
[377234531,1754305938284,-968.13,0.00039452,2]
[377234532,1754305938294,-642.68,0.00039452,2]
[377234533,1754305938303,-521.68,0.00039452,2]
[377234534,1754305938313,-400.0,0.00039452,2]
[377234535,1754305938323,-1754.23,0.00039452,2]
[377234536,1754305938333,-2358.63,0.00039452,2]
[377234537,1754305938342,-400.0,0.00039452,2]
[377234538,1754305938352,-486.35330633,0.00039452,2]
[377234539,1754305938361,-2154.85,0.00039452,2]
[377234540,1754305938371,-1266.17,0.00039452,2]
[377234541,1754305938381,-532.52,0.00039452,2]
[377234542,1754305938391,-403.29,0.00039452,2]
[377234543,1754305938401,-1735.99,0.00039452,2]
[377234544,1754305938410,-1686.63,0.00039452,2]
[377234545,1754305938421,-400.0,0.00039452,2]
[377234546,1754305938431,-403.11,0.00039452,2]
[377234547,1754305938441,-759.33,0.00039452,2]
[377234548,1754305938451,-1873.9,0.00039452,2]
[377234549,1754305938461,-400.0,0.00039452,2]
[377234550,1754305938471,-400.0,0.00039452,2]
[377234551,1754305938480,-1673.67,0.00039452,2]
[377234552,1754305938491,-1754.05,0.00039452,2]
[377234553,1754305938501,-914.89,0.00039452,2]
[377234554,1754305938511,-1464.44,0.00039452,2]
[377234555,1754305938521,-1593.33,0.00039452,2]
[377234556,1754305938531,-773.62,0.00039452,2]
[377234557,1754305938541,-2045.74,0.00039452,2]
[377234558,1754305938551,-400.0,0.00039452,2]
[377234559,1754305938561,-1378.84,0.00039452,2]
[377234560,1754305938571,-783.24,0.00039452,2]
[377234561,1754305938581,-652.46,0.00039452,2]
[377234562,1754305938591,-4332.09,0.00039452,2]
[377234563,1754305938600,-557.78,0.00039452,2]
[377234564,1754305938610,-400.0,0.00039452,2]
[377234565,1754305938620,-400.0,0.00039452,2]
[377234566,1754305938630,-400.0,0.00039452,2]
[377234567,1754305938639,-505.58,0.00039452,2]
[377234568,1754305938649,-2822.69,0.00039452,2]
[377234569,1754305938661,-1582.56,0.00039452,2]
[377234570,1754305938671,-781.05,0.00039452,2]
[377234571,1754305938681,-437.18,0.00039452,2]
[377234572,1754305938690,-1692.49,0.00039452,2]
[377234573,1754305938701,-4257.32,0.00039452,2]
[377234574,1754305938711,-400.0,0.00039452,2]
[377234575,1754305938721,-400.0,0.00039452,2]
[377234576,1754305938730,-958.47,0.00039452,2]
[377234577,1754305938741,-8555.46,0.00039452,2]
[377234578,1754305938752,-1474.41,0.00039452,2]
[377234579,1754305938762,-400.0,0.00039452,2]
[377234580,1754305938772,-400.0,0.00039452,2]
[377234581,1754305938781,-12684.74,0.00039452,2]
[377234582,1754305938792,-400.0,0.00039452,2]
[377234583,1754305938801,-8447.34,0.00039452,2]
[377234584,1754305938810,-1233.77,0.00039452,2]
[377234585,1754305938820,-920.62,0.00039452,2]
[377234586,1754305938830,-1370.77,0.00039452,2]
[377234587,1754305938839,-400.0,0.00039452,2]
[377234588,1754305938849,-400.0,0.00039452,2]
[377234589,1754305938859,-1817.19,0.00039452,2]
[377234590,1754305938870,-2271.19,0.00039452,2]
[377234591,1754305938879,-1888.39,0.00039452,2]
[377234592,1754305938889,-1907.39,0.00039452,2]
[377234593,1754305938898,-1431.25,0.00039452,2]
[377234594,1754305938909,-400.0,0.00039452,2]
[377234595,1754305938921,-1147.83,0.00039452,2]
[377234596,1754305938930,-400.0,0.00039452,2]
[377234597,1754305938940,-400.0,0.00039452,2]
[377234598,1754305938949,-400.0,0.00039452,2]
[377234599,1754305938961,-400.0,0.00039452,2]
[377234600,1754305938971,-400.0,0.00039452,2]
[377234601,1754305938980,-2068.75,0.00039452,2]
[377234602,1754305938989,-400.0,0.00039452,2]
[377234603,1754305939000,-2687.79,0.00039452,2]
[377234604,1754305939010,-2214.61,0.00039452,2]
[377234605,1754305939020,-400.0,0.00039452,2]
[377234606,1754305939030,-400.0,0.00039452,2]
[377234607,1754305939041,-1614.22,0.00039452,2]
[377234608,1754305939051,-802.2,0.00039452,2]
[377234609,1754305939060,-1475.5,0.00039452,2]
[377234610,1754305939070,-670.02,0.00039452,2]
[377234611,1754305939080,-78789.54,0.00039452,2]
[377234612,1754305939090,-400.0,0.00039452,2]
[377234613,1754305939099,-400.0,0.00039452,2]
[377234614,1754305939109,-579.73,0.00039452,2]
[377234615,1754305939119,-400.0,0.00039452,2]
[377234616,1754305939128,-1690.87,0.00039452,2]
[377234617,1754305939137,-2169.93,0.00039452,2]
[377234618,1754305939146,-400.0,0.00039452,2]
[377234619,1754305939156,-11200.4,0.00039452,2]
[377234620,1754305939165,-1258.18,0.00039452,2]
[377234621,1754305939176,-1594.85,0.00039452,2]
[377234622,1754305939185,-1475.71,0.00039452,2]
[377234623,1754305939194,-1778.93,0.00039452,2]
[377234624,1754305939203,-1043.71,0.00039452,2]
[377234625,1754305939213,-400.0,0.00039452,2]
[377234626,1754305939223,-898.73,0.00039452,2]
[377234627,1754305939233,-3118.04,0.00039452,2]
[377234628,1754305939242,-498.32,0.00039452,2]
[377234629,1754305939251,-1857.39,0.00039452,2]
[377234630,1754305939260,-1556.28,0.00039452,2]
[377234631,1754305939270,-400.0,0.00039452,2]
[377234632,1754305939279,-7506.25,0.00039452,2]
[377234633,1754305939289,-285.365468,0.00039452,14]
[377234634,1754305939298,-1191.23,0.00039452,2]
[377234635,1754305939308,-360.02107295,0.00039452,2]
[377234636,1754305939317,-1349.97,0.00039452,2]
[377234637,1754305939326,-577.79,0.00039452,2]
[377234638,1754305939336,-1074.04,0.00039452,2]
[377234639,1754305939345,-3769.24,0.00039452,2]
[377234640,1754305939355,-988.14,0.00039452,2]
[377234641,1754305939364,-1741.31,0.00039452,2]
[377234642,1754305939374,-461.975391,0.00039452,14]
[377234643,1754305939383,-741.487238,0.00039452,14]
[377234644,1754305939393,-3095.42,0.00039452,2]
[377234645,1754305939402,-400.0,0.00039452,2]
[377234646,1754305939412,-1932.57,0.00039452,2]
[377234647,1754305939421,-400.0,0.00039452,2]
[377234648,1754305939431,-1252.42,0.00039452,2]
[377234649,1754305939440,-1985.84,0.00039452,2]
[377234650,1754305939449,-1555.06,0.00039452,2]
[377234651,1754305939458,-3383.45,0.00039452,2]
[377234652,1754305939467,-400.0,0.00039452,2]
[377234653,1754305939477,-741.487238,0.00039452,14]
[377234654,1754305939486,-400.0,0.00039452,2]
[377234655,1754305939497,-495.93,0.00039452,2]
[377234656,1754305939506,-1602.8,0.00039452,2]
[377234657,1754305939516,-2072.61,0.00039452,2]
[377234658,1754305939526,-3681.37,0.00039452,2]
[377234659,1754305939536,-461.975391,0.00039452,14]
[377234660,1754305939546,-1753.85,0.00039452,2]
[377234661,1754305939555,-285.365468,0.00039452,14]
[377234662,1754305939564,-400.0,0.00039452,2]
[377234663,1754305939574,-1605.29,0.00039452,2]
[377234664,1754305939583,-400.0,0.00039452,2]
[377234665,1754305939593,-400.0,0.00039452,2]
[377234666,1754305939602,-400.0,0.00039452,2]
[377234667,1754305939613,-1726.45,0.00039452,2]
[377234668,1754305939623,-1657.08,0.00039452,2]
[377234669,1754305939633,-683.431269,0.00039452,14]
[377234670,1754305939644,-1613.77,0.00039452,2]
[377234671,1754305939654,-2197.37,0.00039452,2]
[377234672,1754305939663,-400.0,0.00039452,2]
[377234673,1754305939674,-1109.72,0.00039452,2]
[377234674,1754305939684,-400.0,0.00039452,2]
[377234675,1754305939693,-400.0,0.00039452,2]
[377234676,1754305939703,-1265.39,0.00039452,2]
[377234677,1754305939712,-531.77,0.00039452,2]
[377234678,1754305939722,-400.0,0.00039452,2]
[377234679,1754305939731,-1790.09,0.00039452,2]
[377234680,1754305940057,-994.35,0.00039452,2]
[377234681,1754305940067,-1207.63,0.00039452,2]
[377234682,1754305940078,-400.0,0.00039452,2]
[377234683,1754305940088,-683.431269,0.00039452,14]
[377234684,1754305940098,-400.0,0.00039452,2]
[377234685,1754305940108,-1697.44,0.00039452,2]
[377234686,1754305940119,-1153.38,0.00039452,2]
[377234687,1754305940128,-1044.0,0.00039452,2]
[377234688,1754305940138,-1273.07,0.00039452,2]
[377234689,1754305940147,-400.0,0.00039452,2]
[377234690,1754305940157,-971.37,0.00039452,2]
[377234691,1754305940167,-400.0,0.00039452,2]
[377234692,1754305940177,-1518.17,0.00039452,2]
[377234693,1754305940188,-1809.15,0.00039452,2]
[377234694,1754305940197,-8777.73,0.00039452,2]
[377234695,1754305940207,-2275.44,0.00039452,2]
[377234696,1754305940217,-400.0,0.00039452,2]
[377234697,1754305940227,-596.6,0.00039452,2]
[377234698,1754305940236,-1037.03,0.00039452,2]
[377234699,1754305940246,-1600.04,0.00039452,2]
[377234700,1754305940256,-490.62,0.00039452,2]
[377234701,1754305940266,-6082.8,0.00039452,2]
[377234702,1754305940276,-599.54,0.00039452,2]
[377234703,1754305940285,-1213.48,0.00039452,2]
[377234704,1754305940295,-797.89,0.00039452,2]
[377234705,1754305940305,-1097.82,0.00039452,2]
[377234706,1754305940314,-400.0,0.00039452,2]
[377234707,1754305940324,-596.19,0.00039452,2]
[377234708,1754305940333,-400.0,0.00039452,2]
[377234709,1754305940343,-448.66,0.00039452,2]
[377234710,1754305940354,-10707.5,0.00039452,2]
[377234711,1754305940365,-222.763767,0.00039452,14]
[377234712,1754305940375,-4934.5,0.00039452,2]
[377234713,1754305940385,-400.0,0.00039452,2]
[377234714,1754305940395,-1936.12,0.00039452,2]
[377234715,1754305940404,-400.0,0.00039452,2]
[377234716,1754305940414,-400.0,0.00039452,2]
[377234717,1754305940424,-2188.32,0.00039452,2]
[377234718,1754305940434,-2575.64,0.00039452,2]
[377234719,1754305940444,-400.0,0.00039452,2]
[377234720,1754305940454,-400.0,0.00039452,2]
[377234721,1754305940463,-222.763767,0.00039452,14]
[377234722,1754305940472,-400.0,0.00039452,2]
[377234723,1754305940480,-1048.1,0.00039452,2]
[377234724,1754305940489,-586.94,0.00039452,2]
[377234725,1754305940499,-1283.58,0.00039452,2]
[377234726,1754305940508,-400.0,0.00039452,2]
[377234727,1754305940518,-151.0,0.00039452,14]
[377234728,1754305940528,-1614.51,0.00039452,2]
[377234729,1754305940537,-1367.27,0.00039452,2]
[377234730,1754305940547,-400.0,0.00039452,2]
[377234731,1754305940557,-400.0,0.00039452,2]
[377234732,1754305940567,-400.0,0.00039452,2]
[377234733,1754305940577,-400.0,0.00039452,2]
[377234734,1754305940587,-500.49,0.00039452,2]
[377234735,1754305940596,-958.06,0.00039452,2]
[377234736,1754305940606,-1400.57,0.00039452,2]
[377234737,1754305940616,-953.11,0.00039452,2]
[377234738,1754305940626,-3431.45,0.00039452,2]
[377234739,1754305940636,-1339.76,0.00039452,2]
[377234740,1754305940646,-16704.11,0.00039452,2]
[377234741,1754305940656,-1799.3,0.00039452,2]
[377234742,1754305940666,-1254.59,0.00039452,2]
[377234743,1754305940676,-1128.88,0.00039452,2]
[377234744,1754305940686,-4814.39,0.00039452,2]
[377234745,1754305940695,-400.0,0.00039452,2]
[377234746,1754305940705,-871.27,0.00039452,2]
[377234747,1754305940714,-400.0,0.00039452,2]
[377234748,1754305940724,-1494.19,0.00039452,2]
[377234749,1754305940734,-1442.54,0.00039452,2]
[377234750,1754305940744,-2112.05,0.00039452,2]
[377234751,1754305940753,-525.6,0.00039452,2]
[377234752,1754305940763,-637.09,0.00039452,2]
[377234753,1754305940773,-400.0,0.00039452,2]
[377234754,1754305940785,-2310.1,0.00039452,2]
[377234755,1754305940795,-2192.65,0.00039452,2]
[377234756,1754305940806,-571.02,0.00039452,2]
[377234757,1754305940816,-1651.01,0.00039452,2]
[377234758,1754305940826,-3310.33,0.00039452,2]
[377234759,1754305940836,-400.0,0.00039452,2]
[377234760,1754305940846,-845.12,0.00039452,2]
[377234761,1754305940856,-533.36,0.00039452,2]
[377234762,1754305940866,-400.0,0.00039452,2]
[377234763,1754305940876,-1650.75,0.00039452,2]
[377234764,1754305940886,-781.29,0.00039452,2]
[377234765,1754305940895,-429.82,0.00039452,2]
[377234766,1754305940907,-400.0,0.00039452,2]
[377234767,1754305940920,-1500.0,0.00039468,5]
[377234768,1754305940930,-431.81146785,0.00039468,5]
[377234769,1754305940940,-383.36687422,0.00039468,5]
[377234770,1754305940950,-1007.5082042,0.00039468,5]
[377234771,1754305940962,-1500.0,0.00039468,5]
[377234772,1754305940971,-1003.61191261,0.00039468,5]
[377234773,1754305940981,-1003.37853909,0.00039468,5]
[377234774,1754305940992,-1500.0,0.00039468,5]
[377234775,1754305941003,-1500.0,0.00039468,5]
[377234776,1754305941013,-1500.0,0.00039468,5]
[377234777,1754305941022,-160.0,0.00039477,2]
[377234778,1754305941032,-287.61899177,0.00039477,2]
[377234779,1754305941041,-431.42848765,0.00039477,2]
[377234780,1754305941050,-281.71758358,0.0003948,15]
[377234781,1754305941060,-2063.57057137,0.00039485,2]
[377234782,1754305941069,-200.0,0.0003951,2]
[377234783,1754305941079,-207.0,0.0003958,2]
[377234784,1754305941088,-151.0,0.00039585,14]
[377234785,1754305941098,-2588.34,0.00039585,2]
[377234786,1754305941108,-2821.29,0.000396,14]
[377234787,1754305941118,-2000.0,0.00039616,5]
[377234788,1754305941127,-250.15,0.00039654,2]
[377234789,1754305941137,-281.71758358,0.0003969,15]
[377234790,1754305941147,-62748.24,0.000397,14]
[377234791,1754305941156,-27024.6,0.000397,22]
[377234792,1754305941166,-616.43901714,0.00039725,2]
[377234793,1754305941176,-150.0,0.00039725,2]
[377234794,1754305941186,-189.0,0.00039725,2]
[377234795,1754305941196,-151.0,0.00039726,14]
[377234796,1754305941206,-151.0,0.00039726,14]
[377234797,1754305941215,-151.0,0.00039726,14]
[377234798,1754305941225,-151.0,0.00039726,14]
[377234799,1754305941235,-151.0,0.00039726,14]
[377234800,1754305941244,-253.97290402,0.00039726,14]
[377234801,1754305941254,-151.0,0.00039726,14]
[377234802,1754305941263,-151.0,0.00039726,14]
[377234803,1754305941273,-151.0,0.00039726,14]
[377234804,1754305941283,-151.0,0.00039726,14]
[377234805,1754305941293,-151.0,0.00039726,14]
[377234806,1754305941303,-151.0,0.00039726,14]
[377234807,1754305941313,-151.0,0.00039726,14]
[377234808,1754305941322,-151.0,0.00039726,14]
[377234809,1754305941332,-151.0,0.00039726,14]
[377234810,1754305941342,-154.786427,0.00039726,14]
[377234811,1754305941352,-151.0,0.00039726,14]
[377234812,1754305941362,-151.0,0.00039726,14]
[377234813,1754305941371,-151.0,0.00039726,14]
[377234814,1754305941381,-157.499618,0.00039726,14]
[377234815,1754305941390,-280.723601,0.00039726,14]
[377234816,1754305941400,-280.723601,0.00039726,14]
[377234817,1754305941409,-311.583152,0.00039726,14]
[377234818,1754305941419,-311.583152,0.00039726,14]
[377234819,1754305941429,-151.0,0.00039726,14]
[377234820,1754305941438,-256.740037,0.00039726,14]
[377234821,1754305941448,-151.0,0.00039726,14]
[377234822,1754305941458,-151.0,0.00039726,14]
[377234823,1754305941467,-198.06212,0.00039726,14]
[377234824,1754305941477,-198.06212,0.00039726,14]
[377234825,1754305941487,-151.0,0.00039726,14]
[377234826,1754305941497,-151.0,0.00039726,14]
[377234827,1754305941507,-226.776309,0.00039726,14]
[377234828,1754305941517,-226.776309,0.00039726,14]
[377234829,1754305941528,-151.0,0.00039726,14]
[377234830,1754305941538,-151.0,0.00039726,14]
[377234831,1754305941547,-151.0,0.00039726,14]
[377234832,1754305941559,-151.0,0.00039726,14]
[377234833,1754305941569,-254.712517,0.00039726,14]
[377234834,1754305941580,-400.0,0.00039726,2]
[377234835,1754305941590,-1430.243073,0.00039726,14]
[377234836,1754305941599,-254.712517,0.00039726,14]
[377234837,1754305941609,-400.0,0.00039726,2]
[377234838,1754305941619,-1430.243073,0.00039726,14]
[377234839,1754305941628,-231.0095525,0.00039726,2]
[377234840,1754305941639,-151.0,0.00039726,14]
[377234841,1754305941649,-298.911584,0.00039726,14]
[377234842,1754305941660,-298.911584,0.00039726,14]
[377234843,1754305941670,-151.0,0.00039726,14]
[377234844,1754305941679,-400.0,0.00039726,2]
[377234845,1754305941687,-459.96549489,0.00039726,2]
[377234846,1754305941695,-400.0,0.00039726,2]
[377234847,1754305941707,-400.0,0.00039726,2]
[377234848,1754305941716,-400.0,0.00039726,2]
[377234849,1754305941726,-400.0,0.00039726,2]
[377234850,1754305941735,-400.0,0.00039726,2]
[377234851,1754305941745,-376.31192987,0.00039726,2]
[377234852,1754305941756,-400.0,0.00039726,2]
[377234853,1754305941766,-400.0,0.00039726,2]
[377234854,1754305941776,-400.0,0.00039726,2]
[377234855,1754305941786,-400.0,0.00039726,2]
[377234856,1754305941795,-400.0,0.00039726,2]
[377234857,1754305941805,-176.433134,0.00039726,14]
[377234858,1754305941815,-236.16447978,0.00039726,2]
[377234859,1754305941824,-206.738021,0.00039726,14]
[377234860,1754305941834,-400.0,0.00039726,2]
[377234861,1754305941845,-206.738021,0.00039726,14]
[377234862,1754305941854,-177.33357194,0.00039726,2]
[377234863,1754305941864,-407.72796967,0.00039726,2]
[377234864,1754305941873,-400.0,0.00039726,2]
[377234865,1754305941883,-509.66262205,0.00039726,2]
[377234866,1754305941892,-400.0,0.00039726,2]
[377234867,1754305941901,-531.68860568,0.00039726,2]
[377234868,1754305941912,-151.0,0.00039726,14]
[377234869,1754305941924,-547.58,0.00039726,2]
[377234870,1754305941934,-458.04,0.00039726,2]
[377234871,1754305941943,-1200.66,0.00039726,2]
[377234872,1754305941954,-586.47,0.00039726,2]
[377234873,1754305941963,-520.3,0.00039726,2]
[377234874,1754305941973,-209.38527053,0.00039726,2]
[377234875,1754305941982,-400.0,0.00039726,2]
[377234876,1754305941992,-400.0,0.00039726,2]
[377234877,1754305942002,-400.0,0.00039726,2]
[377234878,1754305942011,-514.446378,0.00039726,14]
[377234879,1754305942020,-452.57,0.00039726,2]
[377234880,1754305942030,-543.6223723,0.00039726,2]
[377234881,1754305942040,-514.446378,0.00039726,14]
[377234882,1754305942049,-472.84,0.00039726,2]
[377234883,1754305942058,-151.0,0.00039726,14]
[377234884,1754305942067,-460.79604221,0.00039726,2]
[377234885,1754305942077,-400.0,0.00039726,2]
[377234886,1754305942086,-1404.01,0.00039726,2]
[377234887,1754305942095,-1341.8,0.00039726,2]
[377234888,1754305942104,-400.0,0.00039726,2]
[377234889,1754305942114,-400.0,0.00039726,2]
[377234890,1754305942123,-484.06,0.00039726,2]
[377234891,1754305942132,-1693.03,0.00039726,2]
[377234892,1754305942142,-667.41,0.00039726,2]
[377234893,1754305942151,-151.0,0.00039726,14]
[377234894,1754305942160,-175.019188,0.00039726,14]
[377234895,1754305942170,-400.0,0.00039726,2]
[377234896,1754305942179,-400.0,0.00039726,2]
[377234897,1754305942190,-151.0,0.00039726,14]
[377234898,1754305942199,-537.19,0.00039726,2]
[377234899,1754305942209,-849.99,0.00039726,2]
[377234900,1754305942218,-175.019188,0.00039726,14]
[377234901,1754305942227,-151.0,0.00039726,14]
[377234902,1754305942237,-931.14,0.00039726,2]
[377234903,1754305942246,-458.07,0.00039726,2]
[377234904,1754305942255,-1076.15,0.00039726,2]
[377234905,1754305942264,-400.0,0.00039726,2]
[377234906,1754305942273,-1903.28,0.00039726,2]
[377234907,1754305942283,-400.0,0.00039726,2]
[377234908,1754305942293,-400.0,0.00039726,2]
[377234909,1754305942302,-643.67,0.00039726,2]
[377234910,1754305942311,-1064.8,0.00039726,2]
[377234911,1754305942321,-400.0,0.00039726,2]
[377234912,1754305942330,-595.01,0.00039726,2]
[377234913,1754305942339,-151.0,0.00039726,14]
[377234914,1754305942349,-400.0,0.00039726,2]
[377234915,1754305942358,-1756.29,0.00039726,2]
[377234916,1754305942368,-824.14,0.00039726,2]
[377234917,1754305942377,-1696.93,0.00039726,2]
[377234918,1754305942386,-400.0,0.00039726,2]
[377234919,1754305942396,-400.0,0.00039726,2]
[377234920,1754305942405,-400.0,0.00039726,2]
[377234921,1754305942415,-767.86,0.00039726,2]
[377234922,1754305942424,-1492.28,0.00039726,2]
[377234923,1754305942433,-400.0,0.00039726,2]
[377234924,1754305942446,-400.0,0.00039726,2]
[377234925,1754305942455,-400.0,0.00039726,2]
[377234926,1754305942465,-400.0,0.00039726,2]